bitfinex-derivatives/quotes_BNBF0:USTF0_20250130
["timestamp","ask_amount","ask_price","bid_price","bid_amount"]
[1738249325376,0.26951976,682.51,681.66,3.968]
[1738249327679,1.09374245,682.5,681.66,3.968]
[1738249327874,0.26951976,682.49,681.66,3.968]
[1738249328881,1.09374245,682.5,681.66,3.968]
[1738249330078,1.09374245,682.5,681.66,3.109]
[1738249330881,1.09374245,682.5,681.67,0.781]
[1738249331182,1.09374245,682.7,681.67,0.781]
[1738249331477,0.26946589,682.69,681.67,0.781]
[1738249333383,1.09374245,682.66,681.67,0.781]
[1738249333584,0.26946589,682.65,681.67,0.781]
[1738249334179,0.29298019,682.64,681.67,0.781]
[1738249334381,0.26961673,682.63,681.67,0.781]
[1738249334582,0.29298877,682.62,681.67,0.781]
[1738249335380,0.26956042,682.61,681.67,0.781]
[1738249336683,0.29298877,682.62,681.67,0.781]
[1738249337282,0.26954561,682.61,681.67,0.781]
[1738249337588,0.29298877,682.62,681.67,0.781]
[1738249339584,0.29298877,682.62,681.67,1.679]
[1738249341985,0.26954466,682.61,681.67,1.679]
[1738249342186,0.29298877,682.62,681.67,1.679]
[1738249342685,0.26954301,682.61,681.67,1.679]
[1738249343783,0.26954301,682.61,681.67,2.487]
[1738249343982,0.26954301,682.61,681.67,1.706]
[1738249344880,0.29298877,682.62,681.67,1.706]
[1738249345086,0.2695459,682.61,681.67,1.706]
[1738249346286,0.2695459,682.61,681.68,0.857]
[1738249346592,1.09374245,682.6,681.68,1.59]
[1738249346790,0.2695459,682.59,681.68,1.59]
[1738249350290,1.09374245,682.35,681.68,1.59]
[1738249350493,0.2695459,682.34,681.68,1.59]
[1738249350993,0.26956505,682.33,681.68,1.59]
[1738249351187,0.26956505,682.34,681.68,1.59]
[1738249351790,1.09374245,682.35,681.68,1.59]
[1738249352095,0.26960152,682.34,681.68,1.59]
[1738249357093,0.26966798,682.33,681.68,1.59]
[1738249357297,0.26966798,682.34,681.68,1.59]
[1738249357497,0.26966798,682.33,681.68,1.59]
[1738249357697,0.26966798,682.34,681.68,1.59]
[1738249357999,1.09374245,682.23,681.68,1.59]
[1738249358192,0.26966798,682.22,681.68,1.59]
[1738249362095,0.26966798,682.21,681.68,1.59]
[1738249362298,0.26966798,682.2,681.68,1.59]
[1738249362597,0.26966798,682.19,681.68,1.59]
[1738249362792,0.26966798,682.27,681.68,1.59]
[1738249362998,0.26966798,682.26,681.68,1.59]
[1738249363200,0.26966798,682.27,681.68,1.59]
[1738249363497,0.26966798,682.26,681.68,1.59]
[1738249363796,0.26966798,682.27,681.68,1.59]
[1738249363993,0.26966798,682.26,681.68,1.59]
[1738249364193,0.26966798,682.27,681.68,1.59]
[1738249364396,0.26966798,682.26,681.68,1.59]
[1738249364599,0.26966798,682.27,681.68,1.59]
[1738249364791,0.26966798,682.26,681.68,1.59]
[1738249364996,0.26966798,682.27,681.68,1.59]
[1738249365194,0.26966798,682.26,681.68,1.59]
[1738249365397,1.09374245,682.33,681.68,1.59]
[1738249365598,0.2696581,682.32,681.68,1.59]
[1738249366397,0.2696581,682.32,681.68,0.857]
[1738249366798,0.2696581,682.32,681.68,1.745]
[1738249367599,1.09374245,682.26,681.68,1.745]
[1738249367898,1.09374245,682.26,681.68,2.552]
[1738249367899,0.2696581,682.25,681.68,2.552]
[1738249370800,1.09374245,682.16,681.68,2.552]
[1738249371000,0.2696581,682.15,681.68,2.552]
[1738249371394,0.2696581,682.15,681.68,3.6]
[1738249372502,1.09374245,682.05,681.68,3.6]
[1738249372703,0.2696581,682.04,681.68,3.6]
[1738249375805,0.2696581,682.04,681.68,0.371]
[1738249375999,0.2696581,682.17,681.68,0.371]
[1738249376400,1.09374245,682.18,681.68,0.371]
[1738249376699,0.26977852,682.17,681.68,0.371]
[1738249376895,0.26977852,682.17,681.68,2.503]
[1738249377103,0.26977852,682.17,680.15,1.08375845]
[1738249377304,0.26977852,682.17,680.25,0.29400955]
[1738249377500,0.26977852,682.17,680.26,0.25379881]
[1738249378507,1.09374245,682.05,680.26,3.34979881]
[1738249378806,0.26977852,682.04,680.27,0.25379881]
[1738249379301,0.26978139,682.03,680.28,0.25382379]
[1738249379604,0.26978139,682.02,680.29,0.25382379]
[1738249379905,0.26978139,682.01,680.3,0.25382379]
[1738249380101,0.26978139,682.04,680.27,0.25382379]
[1738249381306,1.09374245,682.0,680.27,0.25382379]
[1738249381506,0.26978139,681.99,680.27,0.25382379]
[1738249384803,0.26978139,681.99,680.26,3.096]
[1738249385806,1.09374245,681.88,680.26,3.096]
[1738249385999,0.26978139,681.87,680.26,3.096]
[1738249388402,0.26978139,681.99,680.26,3.096]
[1738249388706,0.26978139,681.98,680.26,3.096]
[1738249388902,1.09374245,682.0,680.26,3.096]
[1738249389104,0.26988151,681.99,680.26,3.096]
[1738249390703,1.09374245,682.0,680.26,3.096]
[1738249390908,0.26989357,681.99,680.26,3.096]
[1738249391109,1.09374245,681.94,680.26,3.096]
[1738249391309,0.26989357,681.93,680.26,3.096]
[1738249394411,0.26989357,681.95,680.26,3.096]
[1738249395808,0.26988384,681.94,680.26,3.096]
[1738249396110,0.26988384,681.93,680.26,3.096]
[1738249396612,0.26988384,681.92,680.26,3.096]
[1738249396807,0.26988384,681.95,680.26,3.096]
[1738249397714,1.09374245,681.89,680.26,3.096]
[1738249397912,0.26988384,681.88,680.26,3.096]
[1738249401115,0.26988384,681.87,680.26,3.096]
[1738249401316,0.26988384,681.91,680.26,3.096]
[1738249401517,0.26988384,681.9,680.26,3.096]
[1738249401718,0.26988384,681.91,680.26,3.096]
[1738249402018,0.26988384,681.9,680.26,3.096]
[1738249402218,0.26988384,681.91,680.26,3.096]
[1738249402920,0.26988384,681.91,680.27,0.25412608]
[1738249404316,1.09374245,681.92,680.26,1.092]
[1738249404517,1.09374245,681.87,680.27,2.07811774]
[1738249404715,0.26987204,681.86,680.28,0.25411774]
[1738249404914,0.26987204,681.86,680.27,1.824]
[1738249407125,1.09374245,681.63,680.27,1.824]
[1738249407324,0.26987204,681.62,680.27,1.824]
[1738249407919,0.26987204,681.62,680.28,0.29399658]
[1738249408624,0.26987204,681.62,680.28,1.22999658]
[1738249409320,1.09374245,681.63,680.28,1.22999658]
[1738249409527,0.26987149,681.62,680.28,1.22999658]
[1738249409721,1.36361394,681.62,680.28,1.22999658]
[1738249409917,0.26987149,681.61,680.28,1.22999658]
[1738249410521,1.09374245,681.62,680.28,1.22999658]
[1738249410722,0.26988108,681.61,680.28,1.22999658]
[1738249412125,1.09374245,681.55,680.28,1.22999658]
[1738249415628,1.09374245,681.56,680.28,1.22999658]
[1738249416826,1.09374245,681.56,680.28,2.05699658]
[1738249418326,1.09374245,681.53,680.28,2.05699658]
[1738249418827,1.09374245,681.53,680.28,2.87499658]
[1738249419424,1.09374245,681.53,680.29,1.53283707]
[1738249419825,1.09374245,681.53,680.31,0.29398362]
[1738249421633,1.09374245,681.4,680.31,0.29398362]
[1738249424833,0.26988213,681.52,680.31,0.29398362]
[1738249424834,1.09374245,681.29,680.31,0.29398362]
[1738249427935,0.26988213,681.52,680.31,0.29398362]
[1738249428737,0.26988213,681.52,680.31,1.12998362]
[1738249433036,0.26988213,681.52,680.32,0.25394773]
[1738249433237,0.26988213,681.52,680.32,0.50788679]
[1738249433442,0.26988213,681.52,680.33,0.25393906]
[1738249434244,0.26988213,681.52,680.41,1.08375845]
[1738249434444,0.26988213,681.52,680.42,0.25393906]
[1738249434742,0.26988213,681.52,680.41,1.08375845]
[1738249436539,0.26988213,681.52,680.43,0.29393177]
[1738249437438,0.26994138,681.51,680.43,0.29393177]
[1738249438044,0.26994138,681.51,680.43,1.12793177]
[1738249439048,1.09374245,681.48,680.43,1.12793177]
[1738249439348,0.26994138,681.47,680.43,1.12793177]
[1738249442543,1.09374245,681.48,680.43,1.12793177]
[1738249442749,0.26997608,681.47,680.43,1.12793177]
[1738249442950,1.36371853,681.47,680.43,1.12793177]
[1738249443247,0.26997608,681.46,680.43,1.12793177]
[1738249444447,1.09374245,681.47,680.43,1.12793177]
[1738249444652,0.26997827,681.46,680.43,1.12793177]
[1738249445851,0.26997827,681.46,680.43,1.97493177]
[1738249446151,1.09374245,681.4,680.43,1.97493177]
[1738249446353,0.26997827,681.39,680.43,1.97493177]
[1738249447745,1.09374245,681.4,680.43,1.97493177]
[1738249447951,0.26999615,681.39,680.43,1.97493177]
[1738249449349,1.09374245,681.45,680.43,1.97493177]
[1738249449545,0.27003095,681.44,680.43,1.97493177]
[1738249452859,1.09374245,681.43,680.43,1.97493177]
[1738249453158,0.27003095,681.42,680.43,1.97493177]
[1738249453956,0.27003095,681.42,680.43,2.85093177]
[1738249454357,1.09374245,681.43,680.43,2.85093177]
[1738249454557,0.27001902,681.42,680.43,2.85093177]
[1738249455649,0.27001902,681.42,680.43,2.557]
[1738249456650,0.27001902,681.5,680.43,2.557]
[1738249456854,0.27001902,681.49,680.43,2.557]
[1738249457050,0.27001902,681.48,680.43,2.557]
[1738249457254,0.27001902,681.47,680.43,2.557]
[1738249457452,0.27001902,681.46,680.43,2.557]
[1738249457657,0.27001902,681.5,680.43,2.557]
[1738249457857,0.27001902,681.49,680.43,2.557]
[1738249458056,0.27001902,681.48,680.43,2.557]
[1738249458658,0.27001902,681.47,680.43,2.557]
[1738249458958,0.27001902,681.46,680.43,2.557]
[1738249459157,0.27001902,681.51,680.43,2.557]
[1738249459357,0.27001902,681.5,680.43,2.557]
[1738249459665,0.26988213,681.52,680.43,2.557]
[1738249459666,0.27003632,681.49,680.43,2.557]
[1738249459858,0.27003632,681.51,680.43,2.557]
[1738249460059,0.27003632,681.5,680.43,2.557]
[1738249460257,0.27003632,681.49,680.43,2.557]
[1738249460457,0.27003632,681.48,680.43,2.557]
[1738249460658,0.27003632,681.47,680.43,2.557]
[1738249460960,0.27003632,681.46,680.43,2.557]
[1738249461261,0.27003632,681.45,680.43,2.557]
[1738249461459,0.27003632,681.51,680.43,2.557]
[1738249462853,0.27001403,681.5,680.43,2.557]
[1738249463057,0.27001403,681.49,680.43,2.557]
[1738249463254,0.27001403,681.51,680.43,2.557]
[1738249463457,0.27001403,681.5,680.43,2.557]
[1738249463760,0.27001403,681.49,680.43,2.557]
[1738249463960,0.27001403,681.51,680.43,2.557]
[1738249464160,0.27001403,681.5,680.43,2.557]
[1738249464363,0.27001403,681.51,680.43,2.557]
[1738249464560,0.26988213,681.52,680.43,2.557]
[1738249464763,0.27003266,681.51,680.43,2.557]
[1738249468059,0.26988213,681.52,680.43,2.557]
[1738249468262,0.27001616,681.51,680.43,2.557]
[1738249470265,1.09374245,681.49,680.43,2.557]
[1738249470465,0.27001616,681.48,680.43,2.557]
[1738249471367,1.09374245,681.49,680.43,2.557]
[1738249471561,0.27002021,681.48,680.43,2.557]
[1738249473270,1.09374245,681.14,680.43,2.557]
[1738249476670,5.21282157,689.27,680.43,2.557]
[1738249476671,1.09374245,681.32,680.43,2.557]
[1738249479075,1.09374245,681.32,680.43,2.85093177]
[1738249483067,5.21282157,689.46,680.43,2.85093177]
[1738249483068,1.09374245,681.42,680.43,2.85093177]
[1738249487177,1.09374245,682.06,680.43,2.85093177]
[1738249488872,1.09374245,682.06,680.44,0.25374308]
[1738249490171,1.09374245,682.09,680.44,0.96874308]
[1738249490375,1.09374245,682.09,680.45,0.25365376]
[1738249493573,1.09374245,682.09,680.44,2.291]
[1738249493778,2.19664971,682.58,680.44,2.291]
[1738249493779,1.09374245,682.08,680.46,0.25365912]
[1738249494079,1.09374245,682.08,680.47,0.25364641]
[1738249494274,1.09374245,682.08,680.45,0.25364641]
[1738249495878,1.09374245,682.08,680.44,2.291]
[1738249497476,1.09374245,682.16,680.44,1.583]
[1738249500881,1.09374245,682.44,680.44,2.31]
[1738249501580,1.09374245,682.44,680.46,0.29391881]
[1738249503777,1.09374245,682.32,680.46,0.29391881]
[1738249504283,1.09374245,682.32,680.47,0.25353632]
[1738249505783,1.09374245,682.32,680.48,0.25347692]
[1738249506483,1.09374245,682.32,680.47,1.055]
[1738249506484,1.09374245,682.12,680.47,1.055]
[1738249508979,1.31249095,682.7,680.47,1.055]
[1738249508980,1.09374245,682.04,680.47,1.055]
[1738249509288,1.09374245,682.04,680.48,0.25326998]
[1738249510586,1.09374245,682.04,680.47,1.055]
[1738249510785,1.09374245,682.04,680.48,0.25320122]
[1738249512687,1.09374245,682.33,680.48,0.25320122]
[1738249514986,1.09374245,682.33,680.48,1.14220122]
[1738249515185,1.09374245,682.33,680.49,0.25320122]
[1738249515486,1.09374245,682.44,680.51,0.29389722]
[1738249515684,1.09374245,682.44,680.52,0.25320122]
[1738249515885,1.09374245,682.44,680.53,0.25314512]
[1738249516087,1.09374245,682.44,680.54,0.25314512]
[1738249516285,1.09374245,682.44,680.55,0.25314512]
[1738249516586,1.09374245,682.44,680.56,0.25314512]
[1738249516787,1.09374245,682.44,680.57,0.25314512]
[1738249516982,1.09374245,682.44,680.52,0.25314512]
[1738249517183,1.09374245,682.44,680.53,0.25314512]
[1738249517385,1.09374245,682.44,680.52,0.25314512]
[1738249517582,1.09374245,682.44,680.53,0.25314512]
[1738249517789,1.09374245,682.44,680.52,0.25314512]
[1738249517981,1.09374245,682.4,680.53,0.25314512]
[1738249518288,1.09374245,682.4,680.54,0.25314512]
[1738249518483,1.09374245,682.4,680.52,0.25314512]
[1738249519190,1.09374245,682.4,680.54,0.29388426]
[1738249519491,1.09374245,682.4,680.55,0.25315489]
[1738249520086,1.09374245,682.32,680.55,0.25315489]
[1738249520391,1.09374245,682.32,680.57,0.29387131]
[1738249520590,1.09374245,682.32,680.58,0.25315489]
[1738249521792,1.09374245,682.32,680.6,0.29385836]
[1738249522291,1.09374245,682.32,680.61,0.25315489]
[1738249522490,1.09374245,682.32,680.63,0.2938454]
[1738249522791,1.09374245,682.25,680.64,0.25315489]
[1738249522991,1.09374245,682.25,680.66,0.29383245]
[1738249523191,1.09374245,682.25,680.67,0.25315489]
[1738249523491,1.09374245,682.25,680.69,0.2938195]
[1738249523690,1.09374245,682.25,680.7,0.25315489]
[1738249523886,1.09374245,682.25,680.72,0.29380655]
[1738249524086,1.09374245,682.25,680.73,0.25309249]
[1738249524289,1.09374245,682.25,680.74,0.29379792]
[1738249524490,1.09374245,682.25,680.75,0.25309249]
[1738249524692,1.09374245,682.25,680.76,0.29378929]
[1738249524991,1.09374245,682.25,680.77,0.25309249]
[1738249525191,1.09374245,682.25,680.78,0.29378066]
[1738249525394,1.09374245,682.25,680.79,0.25309249]
[1738249525593,1.09374245,682.25,680.8,0.29377203]
[1738249525788,1.09374245,682.23,680.8,0.29377203]
[1738249529197,0.29298877,682.62,680.8,0.29377203]
[1738249529198,1.09374245,682.35,680.8,0.29377203]
[1738249529896,1.09374245,682.35,680.8,1.36677203]
[1738249531697,0.29298877,682.62,680.8,1.36677203]
[1738249531698,1.09374245,682.51,680.8,1.36677203]
[1738249533995,1.09374245,682.47,680.8,1.36677203]
[1738249536196,1.09374245,682.47,680.81,0.25310904]
[1738249536501,1.09374245,682.47,680.82,0.2937634]
[1738249536701,1.09374245,682.47,680.83,0.25310904]
[1738249537203,1.09374245,682.34,680.83,0.25310904]
[1738249537402,1.09374245,682.34,680.82,0.2937634]
[1738249539904,1.09374245,682.25,680.82,0.2937634]
[1738249542704,1.09374245,682.22,680.82,0.2937634]
[1738249543110,1.09374245,682.22,680.82,1.1097634]
[1738249546011,1.09374245,682.05,680.82,1.1097634]
[1738249546313,0.269656,682.04,680.82,1.1097634]
[1738249547310,1.09374245,682.05,680.83,0.2530916]
[1738249547513,1.09374245,682.05,680.85,0.29375045]
[1738249549117,1.09374245,681.92,680.85,0.29375045]
[1738249550611,1.09374245,681.92,680.85,1.23175045]
[1738249552113,1.09374245,681.94,680.85,1.23175045]
[1738249556117,1.09374245,681.94,680.85,2.19675045]
[1738249557426,1.09374245,681.95,680.85,2.19675045]
[1738249559322,1.09374245,681.95,680.85,3.13675045]
[1738249561421,0.77123449,682.61,680.85,3.13675045]
[1738249561422,1.09374245,681.94,680.85,3.13675045]
[1738249564327,1.09374245,682.29,680.85,3.13675045]
[1738249567635,1.09374245,682.27,680.85,3.13675045]
[1738249569438,0.2696504,682.26,680.85,3.13675045]
[1738249570038,1.36339285,682.26,680.85,3.13675045]
[1738249570332,0.2696504,682.25,680.85,3.13675045]
[1738249572542,1.09374245,681.92,680.85,4.2205089]
[1738249573934,1.09374245,681.92,680.86,0.25323014]
[1738249575636,1.09374245,681.88,680.86,1.33698859]
[1738249575841,1.09374245,681.88,680.87,0.54697197]
[1738249576042,1.09374245,681.88,680.87,0.29374183]
[1738249576835,1.09374245,681.88,680.87,1.01674183]
[1738249581237,1.09374245,681.89,680.87,1.01674183]
[1738249583441,0.26974799,681.88,680.87,1.01674183]
[1738249584441,0.26974799,681.88,680.87,2.06274183]
[1738249584642,1.09374245,681.91,680.87,2.06274183]
[1738249584841,0.26974621,681.9,680.87,2.06274183]
[1738249586742,1.09374245,681.86,680.87,2.06274183]
[1738249586941,0.26974621,681.85,680.87,2.06274183]
[1738249587939,1.09374245,681.86,680.87,2.06274183]
[1738249588142,0.26975508,681.85,680.87,2.06274183]
[1738249588343,1.09374245,681.86,680.87,2.06274183]
[1738249588544,0.26977207,681.85,680.87,2.06274183]
[1738249589742,0.26981115,681.84,680.87,2.96874183]
[1738249589940,0.26981115,681.85,680.87,2.96874183]
[1738249590139,0.26981115,681.84,680.87,2.96874183]
[1738249590346,0.26981115,681.85,680.87,2.96874183]
[1738249590538,0.26981115,681.84,680.87,2.96874183]
[1738249590742,0.26981115,681.83,680.87,2.96874183]
[1738249591039,1.09374245,681.96,680.87,2.96874183]
[1738249591040,0.26981115,681.82,680.87,2.96874183]
[1738249591240,0.26981115,681.95,680.87,2.96874183]
[1738249591544,0.26981115,681.94,680.87,2.96874183]
[1738249592046,0.26981115,681.93,680.87,2.96874183]
[1738249592440,0.26981115,681.92,680.87,2.96874183]
[1738249592644,0.26981115,681.95,680.87,2.96874183]
[1738249592844,0.26981115,681.94,680.87,2.96874183]
[1738249593047,1.09374245,681.78,680.87,2.96874183]
[1738249593345,0.26981115,681.77,680.87,2.96874183]
[1738249596547,0.26981115,681.76,680.87,2.96874183]
[1738249596756,0.26981115,681.75,680.87,2.96874183]
[1738249596944,0.26981115,681.89,680.87,2.96874183]
[1738249597144,0.26981115,681.88,680.87,2.96874183]
[1738249597548,1.09374245,681.9,680.87,2.96874183]
[1738249597549,0.26981115,681.89,680.87,2.96874183]
[1738249597755,0.26981115,681.87,680.87,2.96874183]
[1738249597943,0.26981115,681.86,680.87,2.96874183]
[1738249598148,0.26981115,681.89,680.87,2.96874183]
[1738249600051,0.26981115,681.92,680.87,2.96874183]
[1738249600349,0.26981115,681.91,680.87,2.96874183]
[1738249600551,0.26981115,681.92,680.87,2.96874183]
[1738249600850,0.26981115,681.91,680.87,2.96874183]
[1738249601050,0.26981115,681.9,680.87,2.96874183]
[1738249601244,1.09374245,681.93,680.87,2.96874183]
[1738249601450,0.26980228,681.92,680.87,2.96874183]
[1738249604246,0.26980228,681.91,680.87,2.96874183]
[1738249604447,0.26980228,681.95,680.87,2.96874183]
[1738249604652,1.09374245,681.96,680.87,2.96874183]
[1738249604845,0.26975359,681.95,680.87,2.96874183]
[1738249606752,0.26975359,682.08,680.87,2.96874183]
[1738249606952,0.26975359,682.07,680.87,2.96874183]
[1738249607153,0.26975359,682.08,680.87,2.96874183]
[1738249607350,0.26975359,682.07,680.87,2.96874183]
[1738249607546,0.26975359,682.08,680.87,2.96874183]
[1738249609751,0.26975359,682.07,680.87,2.96874183]
[1738249609948,1.09374245,682.11,680.87,2.96874183]
[1738249610150,0.26970944,682.1,680.87,2.96874183]
[1738249610951,0.26970944,682.1,680.88,0.25330542]
[1738249611657,1.09374245,682.11,680.87,2.24574183]
[1738249611856,1.09374245,682.11,680.88,0.25321684]
[1738249612061,1.09374245,682.09,680.88,0.25321684]
[1738249612356,1.09374245,682.09,680.88,1.01221684]
[1738249612659,1.09374245,682.09,680.89,0.25321684]
[1738249612861,1.09374245,682.09,680.88,0.759]
[1738249613658,1.09374245,682.09,680.88,1.751]
[1738249614661,1.09374245,682.09,680.89,0.25318033]
[1738249615057,1.09374245,682.09,680.9,0.25319146]
[1738249615260,1.09374245,682.32,680.89,0.25319146]
[1738249615560,0.26961492,682.31,680.9,0.25316774]
[1738249615759,0.26961492,682.31,680.88,1.751]
[1738249615960,0.26961492,682.31,680.89,0.25318492]
[1738249616160,0.26961492,682.31,680.88,1.751]
[1738249616863,0.26961492,682.31,680.88,2.41]
[1738249617866,0.26961492,682.31,680.89,0.25314878]
[1738249618162,0.26961492,682.3,680.89,0.25314878]
[1738249618359,0.26961492,682.46,680.89,0.25314878]
[1738249618564,1.09374245,682.47,680.88,2.41]
[1738249618764,0.26960077,682.46,680.89,0.25313036]
[1738249620270,1.09374245,682.47,680.88,2.41]
[1738249620465,0.26960302,682.46,680.89,0.25313724]
[1738249621471,1.09374245,682.47,680.88,2.41]
[1738249621770,0.26958585,682.46,680.89,0.25309668]
[1738249622072,0.26958585,682.46,680.91,0.29372457]
[1738249622273,0.26958585,682.53,680.92,0.25309668]
[1738249622465,0.26958585,682.52,680.92,0.25309668]
[1738249622668,0.26958585,682.51,680.92,0.25309668]
[1738249622870,0.26958585,682.53,680.92,0.25309668]
[1738249623067,0.26958585,682.52,680.92,0.25309668]
[1738249623266,1.09374245,682.54,680.91,0.29372457]
[1738249623577,0.26958363,682.53,680.92,0.25310061]
[1738249624169,0.26958363,682.53,680.94,0.29371163]
[1738249624368,0.26958363,682.53,680.95,0.25310061]
[1738249624671,0.26958363,682.53,680.97,0.29369869]
[1738249625868,0.26958363,682.61,680.97,0.29369869]
[1738249626173,0.26958363,682.6,680.97,0.29369869]
[1738249626366,0.26958363,682.61,680.97,0.29369869]
[1738249626570,0.26958363,682.6,680.97,0.29369869]
[1738249626771,0.26958363,682.61,680.97,0.29369869]
[1738249626972,0.26958363,682.6,680.97,0.29369869]
[1738249627166,0.26958363,682.61,680.97,0.29369869]
[1738249627368,0.26958363,682.6,680.97,0.29369869]
[1738249627669,0.26958363,682.59,680.97,0.29369869]
[1738249627870,0.26958363,682.58,680.97,0.29369869]
[1738249628069,0.26958363,682.61,680.97,0.29369869]
[1738249628273,1.09374245,682.63,680.97,0.29369869]
[1738249628471,0.26957961,682.61,680.97,0.29369869]
[1738249631777,0.26958458,682.6,680.97,0.29369869]
[1738249632075,0.26958458,682.59,680.97,0.29369869]
[1738249632472,0.26958458,682.61,680.97,0.29369869]
[1738249632671,0.26958458,682.6,680.97,0.29369869]
[1738249632977,0.26958458,682.59,680.97,0.29369869]
[1738249633177,0.26958458,682.61,680.97,0.29369869]
[1738249633371,0.26958458,682.6,680.97,0.29369869]
[1738249633573,0.26958458,682.61,680.97,0.29369869]
[1738249634977,1.09374245,682.72,680.97,0.29369869]
[1738249635279,0.26959955,682.61,680.97,0.29369869]
[1738249635674,0.26959955,682.61,680.97,1.21569869]
[1738249636379,1.09374245,682.59,680.97,1.21569869]
[1738249636572,0.26959955,682.58,680.97,1.21569869]
[1738249637275,0.26959955,682.58,680.97,2.23869869]
[1738249639679,1.09374245,682.42,680.97,2.23869869]
[1738249639880,0.26959955,682.41,680.97,2.23869869]
[1738249641777,0.26960921,682.4,680.97,2.23869869]
[1738249641974,0.26960921,682.41,680.97,2.23869869]
[1738249642177,0.26960921,682.4,680.97,2.23869869]
[1738249642376,0.26960921,682.41,680.97,2.23869869]
[1738249642577,0.26960921,682.4,680.97,2.23869869]
[1738249642777,0.26960921,682.41,680.98,0.2531091]
[1738249642976,1.09374245,682.24,680.98,0.2531091]
[1738249643179,0.26960921,682.23,680.98,0.2531091]
[1738249643877,0.26960921,682.23,680.98,1.2751091]
[1738249644275,0.26960921,682.23,680.99,0.2531091]
[1738249644475,0.26960921,682.23,680.98,1.022]
[1738249645077,0.26960921,682.23,681.0,0.29368575]
[1738249645776,1.09374245,682.13,681.0,0.29368575]
[1738249645980,0.26960921,682.12,681.01,0.25302346]
[1738249646174,1.09374245,682.13,681.0,0.29368575]
[1738249647378,0.26962697,682.12,681.0,0.29368575]
[1738249647684,1.09374245,682.13,681.0,0.29368575]
[1738249648282,0.26963802,682.12,681.0,0.29368575]
[1738249649084,1.09374245,682.02,681.0,0.29368575]
[1738249649278,0.26963802,682.01,681.0,0.29368575]
[1738249649983,1.09374245,682.02,681.0,0.29368575]
[1738249650381,1.09374245,682.02,681.0,1.24268575]
[1738249652785,1.09374245,681.97,681.0,1.24268575]
[1738249656585,1.09374245,681.97,681.01,0.25303819]
[1738249656985,1.09374245,682.12,681.0,1.24268575]
[1738249657285,0.26961733,682.11,681.0,1.24268575]
[1738249657485,0.26961733,682.11,681.01,0.25304512]
[1738249658685,0.26961733,682.11,681.0,1.24268575]
[1738249659087,0.26961733,682.11,681.01,0.25307808]
[1738249659287,0.26961733,682.11,681.0,1.24268575]
[1738249659483,0.26961733,682.11,681.01,0.25307663]
[1738249659684,0.26961733,682.11,681.0,1.24268575]
[1738249659889,1.09374245,682.09,681.01,0.25307645]
[1738249660082,0.26961733,682.08,681.01,0.25307645]
[1738249660281,1.09374245,682.09,681.01,0.25307645]
[1738249660485,1.09374245,682.09,681.0,1.24268575]
[1738249660789,1.09374245,682.09,681.01,0.54674496]
[1738249661090,1.09374245,682.09,681.02,0.29367713]
[1738249661989,1.09374245,682.09,681.02,1.98967713]
[1738249662489,1.09374245,682.07,681.02,1.98967713]
[1738249665090,1.09374245,682.12,681.02,1.98967713]
[1738249667693,1.09374245,682.1,681.02,1.98967713]
[1738249671397,0.26968572,682.09,681.02,1.98967713]
[1738249672897,1.09374245,682.1,681.02,1.98967713]
[1738249673898,0.26974022,682.09,681.02,1.98967713]
[1738249674102,1.09374245,682.1,681.02,1.98967713]
[1738249674402,0.269731,682.09,681.02,1.98967713]
[1738249674605,1.09374245,681.94,681.02,1.98967713]
[1738249677498,0.26971427,681.93,681.02,1.98967713]
[1738249678100,0.26971427,681.92,681.02,1.98967713]
[1738249678301,0.26971427,682.02,681.02,1.98967713]
[1738249678596,1.09374245,682.03,681.02,2.71467713]
[1738249678597,0.26971427,682.01,681.02,2.71467713]
[1738249678803,1.09374245,682.03,681.02,2.71467713]
[1738249679104,0.26971823,682.02,681.02,2.71467713]
[1738249680204,1.09374245,682.0,681.02,2.71467713]
[1738249680601,0.26971823,681.99,681.02,2.71467713]
[1738249682507,1.09374245,681.91,681.02,2.71467713]
[1738249686209,1.09374245,682.12,681.02,2.71467713]
[1738249686409,0.26963891,682.11,681.02,2.71467713]
[1738249686804,1.09374245,682.12,681.02,2.71467713]
[1738249686805,0.26963739,682.1,681.02,2.71467713]
[1738249687009,0.26963739,682.11,681.02,2.71467713]
[1738249689107,1.09374245,682.12,681.02,2.71467713]
[1738249689108,1.09374245,682.17,681.02,2.71467713]
[1738249692105,0.26968652,682.16,681.02,2.71467713]
[1738249692514,0.26968652,682.38,681.02,2.71467713]
[1738249692704,0.26968652,682.37,681.02,2.71467713]
[1738249692909,0.26968652,682.38,681.02,2.71467713]
[1738249693105,0.26968652,682.36,681.02,2.71467713]
[1738249693313,0.26968652,682.35,681.02,2.71467713]